[Event "Hungarian Youth-ch U14 2022"]
[Site "Eger"]
[Date "2022.07.26"]
[Round "4.10"]
[White "Nandin-Erdene, Davaademberel"]
[Black "Karacsonyi, Luca"]
[Result "1-0"]
[ECO "B44"]
[WhiteElo "1789"]
[BlackElo "1789"]
[Annotator "NA RC COMBH"]
[PlyCount "147"]
[EventDate "2022.07.21"]
[EventType "tourn"]
[EventCountry "HUN"]
[SourceTitle "playchess.com"]
[Source "ChessBase"]
[SourceQuality "1"]
[TimeControl "40/5400+30:1800+30"]

1. e4 {[%emt 0:00:36]} c5 {[%emt 0:00:36]} 2. Nf3 {[%emt 0:00:10]} Nc6 {[%emt 0:00:07]} 3. d4 {[%emt 0:00:08]} cxd4 {[%emt 0:00:06]} 4. Nxd4 {[%emt 0:00:06]} e6 {[%emt 0:00:07]} 5. Nb5 {[%emt 0:00:49]} d6 {[%emt 0:02:24]} 6. c4 {[%emt 0:00:35]} a6 {[%emt 0:01:48]} 7. N5c3 {[%emt 0:00:48]} Nf6 {[%emt 0:02:18]} 8. Na3 {[%emt 0:00:37]} Be7 {[%emt 0:03:10]} 9. Be2 {[%emt 0:00:48]} O-O {[%emt 0:01:31]} 10. Be3 {[%emt 0:00:44]} Qc7 {[%emt 0:05:25]} 11. O-O {[%emt 0:01:04]} b6 {[%emt 0:07:34]} 12. Qb3 {[%emt 0:04:25]} Rb8 {[%emt 0:02:54]} 13. Rac1 {[%emt 0:01:28]} Nd7 {[%emt 0:04:24]} 14. Nd5 {[%emt 0:12:05]} exd5 {[%emt 0:05:49]} 15. cxd5 {[%emt 0:00:19]} Nc5 {[%emt 0:01:24]} 16. Qc3 {[%emt 0:01:54]} Bf6 {[%emt 0:05:03]} 17. Qd2 {[%emt 0:00:54]} Ne5 {[%emt 0:12:13]} 18. b4 {[%emt 0:02:28]} Qa7 {[%emt 0:05:50]} 19. bxc5 {[%emt 0:00:17]} bxc5 {[%emt 0:00:26]} 20. Rb1 {[%emt 0:06:45]} Qc7 {[%emt 0:16:19]} 21. f4 {[%emt 0:04:44]} Ng6 {[%emt 0:03:49]} 22. Nc4 {[%emt 0:03:10]} Bd7 {[%emt 0:01:11]} 23. Bh5 {[%emt 0:04:27]} Bb5 {[%emt 0:02:03]} 24. Be2 {[%emt 0:01:47]} Bxc4 {[%emt 0:02:11]} 25. Bxc4 {[%emt 0:00:08]} Rxb1 {[%emt 0:04:49]} 26. Rxb1 {[%emt 0:00:08]} Rb8 {[%emt 0:00:14]} 27. Bb3 {[%emt 0:04:14]} c4 {[%emt 0:01:41]} 28. Qc1 {[%emt 0:14:32]} c3 {[%emt 0:01:09]} 29. Qc2 {[%emt 0:01:27]} a5 {[%emt 0:02:03]} 30. a4 {[%emt 0:06:08]} Qd7 {[%emt 0:01:30]} 31. g3 {[%emt 0:11:49]} Rb4 {[%emt 0:00:53]} 32. Bf2 {[%emt 0:05:41]} Qe7 {[%emt 0:00:54]} 33. Re1 {[%emt 0:03:39]} Qb7 {[%emt 0:00:13]} 34. Rb1 {[%emt 0:01:42]} h6 {[%emt 0:00:52]} 35. Ba2 {[%emt 0:00:49]} Rxb1+ {[%emt 0:01:36]} 36. Qxb1 {[%emt 0:00:31]} Qb2 {[%emt 0:00:42]} 37. Qxb2 {[%emt 0:00:26]} cxb2 {[%emt 0:00:02]} 38. Be1 {[%emt 0:00:34]} Kf8 {[%emt 0:01:03]} 39. Bxa5 {[%emt 0:00:00]} Ke8 {[%emt 0:00:00]} 40. Bb6 {[%emt 0:00:00]} Nf8 {[%emt 0:00:00]} 41. Bc7 {[%emt 0:04:03]} Bd4+ {[%emt 0:05:30]} 42. Kf1 {[%emt 0:00:55]} Ke7 {[%emt 0:00:48]} 43. e5 {[%emt 0:07:03]} dxe5 {[%emt 0:01:59]} 44. fxe5 {[%emt 0:18:54]} Nd7 {[%emt 0:03:19]} 45. Bd6+ {[%emt 0:00:33]} Ke8 {[%emt 0:01:00]} 46. e6 {[%emt 0:00:39]} fxe6 {[%emt 0:00:20]} 47. dxe6 {[%emt 0:00:16]} Nb6 {[%emt 0:10:03]} 48. Bb1 {[%emt 0:01:12]} Bf6 {[%emt 0:04:21]} 49. a5 {[%emt 0:02:13]} Nd5 {[%emt 0:05:28]} 50. a6 {[%emt 0:02:54]} Bd4 {[%emt 0:00:32]} 51. Ke1 {[%emt 0:01:20]} Be3 {[%emt 0:03:44]} 52. Be5 {[%emt 0:01:15]} Ke7 {[%emt 0:01:21]} 53. Bxb2 {[%emt 0:00:20]} Kxe6 {[%emt 0:00:32]} 54. Ba2 {[%emt 0:01:50]} g6 {[%emt 0:00:43]} 55. Bg7 {[%emt 0:00:31]} h5 {[%emt 0:00:41]} 56. Bh6 {[%emt 0:00:41]} Ba7 {[%emt 0:00:28]} 57. Kd2 {[%emt 0:00:30]} Kd6 {[%emt 0:00:20]} 58. Bxd5 {[%emt 0:00:29]} Kxd5 {[%emt 0:00:06]} 59. Be3 {[%emt 0:00:08]} Bb8 {[%emt 0:00:12]} 60. a7 {[%emt 0:00:05]} Bxa7 {[%emt 0:00:04]} 61. Bxa7 {[%emt 0:00:07]} Ke4 {[%emt 0:00:15]} 62. h4 {[%emt 0:00:27]} Kf3 {[%emt 0:00:29]} 63. Bb8 {[%emt 0:00:04]} Kg4 {[%emt 0:00:42]} 64. Ke3 {[%emt 0:00:15]} g5 {[%emt 0:00:39]} 65. hxg5 {[%emt 0:00:11]} Kxg5 {[%emt 0:00:12]} 66. Kf3 {[%emt 0:00:35]} Kf5 {[%emt 0:00:56]} 67. Bc7 {[%emt 0:00:43]} Kg5 {[%emt 0:00:23]} 68. Bd8+ {[%emt 0:00:51]} Kf5 {[%emt 0:00:21]} 69. Kg2 {[%emt 0:00:25]} Kg4 {[%emt 0:00:19]} 70. Kh2 {[%emt 0:00:14]} Kf5 {[%emt 0:00:30]} 71. Kh3 {[%emt 0:00:11]} Kg6 {[%emt 0:00:13]} 72. Kh4 {[%emt 0:00:06]} Kh6 {[%emt 0:00:09]} 73. Be7 {[%emt 0:00:12]} Kg6 {[%emt 0:00:08]} 74. Bg5 {[%emt 0:00:05]} 1-0

[Event "Hungarian Youth-ch U14 2022"]
[Site "Eger"]
[Date "2022.07.27"]
[Round "5.1"]
[White "Gergely, Daniel"]
[Black "Szegedy, Matyas"]
[Result "1/2-1/2"]
[ECO "A56"]
[WhiteElo "2053"]
[BlackElo "2152"]
[Annotator "TA"]
[PlyCount "94"]
[EventDate "2022.07.21"]
[EventType "tourn"]
[EventCountry "HUN"]
[SourceTitle "playchess.com"]
[Source "ChessBase"]
[SourceQuality "1"]
[TimeControl "40/5400+30:1800+30"]

{[%evp 19,94,52,75,61,60,47,55,28,55,58,60,-37,-29,-27,-27,-95,0,-6,-11,-76,-42,-30,-23,-44,0,0,0,0,0,-79,-61,-58,-81,-175,-78,-77,-36,-97,-88,-139,-95,-117,-81,-133,-73,-79,0,0,0,0,0,-137,0,-233,-216,-249,0,-213,-46,-354,-334,-655,-666,-510,-212,-204,0,0,-8,-8,-8,-8,-8,-8,-16,-16,-10]} 1. d4 {[%emt 0:00:35]} Nf6 {[%emt 0:00:41]} 2. c4 {[%emt 0:00:10]} c5 {[%emt 0:00:20]} 3. d5 {[%emt 0:00:11]} g6 {[%emt 0:00:08]} 4. Nc3 {[%emt 0:00:29]} Bg7 {[%emt 0:00:22]} 5. e4 {[%emt 0:00:23]} d6 {[%emt 0:00:07]} 6. Bd3 {[%emt 0:00:28]} O-O {[%emt 0:00:16]} 7. h3 {[%emt 0:00:19]} e6 {[%emt 0:01:03]} 8. Nf3 {[%emt 0:00:29]} Na6 {[%emt 0:00:10]} 9. O-O {[%emt 0:01:37]} Nc7 {[%emt 0:00:46] 9...e5 injects fresh life into this line.} 10. Re1 {[%emt 0:04:19]} Rb8 {[%emt 0:03:26][%cal Ob7b5]} 11. a4 {[%emt 0:04:01] White is more active. E90: King's Indian: Classical: Early deviations and 6 h3.} e5 {[%emt 0:04:58]} 12. Nh2 {[%emt 0:16:16] [#]} Nh5 $146 {[%emt 0:11:40]} ({Predecessor:} 12... Na6 13. Nb5 Nb4 14. f4 Nxd3 15. Qxd3 a6 16. fxe5 axb5 17. exf6 bxc4 18. Qxc4 Bxf6 {0-1 (37) Hilverda,A (2233)-Arnaudov,P (2477) Wunsiedel 2012}) 13. Ne2 {[%emt 0:07:58] White is slightly better.} f5 {[%emt 0:11:09]} 14. exf5 {[%emt 0:12:59]} Bxf5 {[%emt 0:03:10]} 15. Qc2 {[%emt 0:06:19]} (15. Nc3 $14 Bc8 16. Nf3) 15... Na6 $15 {[%emt 0:10:17]} 16. Bd2 {[%emt 0:04:18]} Qf6 {[%emt 0:04:42] White must now prevent ...e4.} 17. Rf1 {[%emt 0:06:05] [#]} (17. Bxf5 $11 gxf5 18. Ra3) 17... Rbe8 {[%emt 0:09:40]} (17... e4 $1 $17 {[%cal Re4d3]} 18. Bxe4 Bxe4 19. Qxe4 Rbe8) 18. Be4 {[%emt 0:02:35]} Qh4 {[%emt 0:03:17]} 19. f3 {[%emt 0:04:56]} (19. Nc3 $11 {keeps the balance.}) 19... Nf4 {[%emt 0:04:00]} 20. Nxf4 {[%emt 0:04:53]} exf4 {[%emt 0:01:16]} 21. Bxf5 {[%emt 0:01:26]} Rxf5 {[%emt 0:02:26]} 22. Rfe1 {[%emt 0:05:00]} Bd4+ {[%emt 0:04:51]} 23. Kh1 {[%emt 0:00:05]} Rfe5 $36 {[%emt 0:00:05][%mdl 2048] Black is more active.} 24. Re4 {[%emt 0:00:55]} (24. Rxe5 $11 {remains equal.} Rxe5 25. Ng4) 24... Nb4 $17 {[%emt 0:01:37]} 25. Bxb4 {[%emt 0:03:36]} cxb4 {[%emt 0:00:47]} 26. Rd1 {[%emt 0:02:12]} (26. Rf1 $17 {was worth a try.} Rxe4 27. fxe4) 26... Bc5 {[%emt 0:02:30]} (26... Rxe4 $19 27. fxe4 Qf2 28. Qxf2 Bxf2) 27. b3 {[%emt 0:02:01]} R8e7 {[%emt 0:11:44]} 28. Qe2 {[%emt 0:03:12]} (28. Qb1 $15) 28... h5 {[%emt 0:01:26]} 29. Rf1 {[%emt 0:02:24]} (29. Re1 $142) 29... Be3 {[%emt 0:01:03]} 30. Qc2 {[%emt 0:01:09] Threatens to win with Rxe5.} Kh7 {[%emt 0:00:08]} 31. Qd3 {[%emt 0:01:07]} (31. Qb1 $142) 31... Qg5 {[%emt 0:01:00]} (31... Kh6 $142) 32. Re1 {[%emt 0:01:20]} Bc5 {[%emt 0:06:12]} (32... Qf5 $17) 33. Nf1 $11 {[%emt 0:00:53]} Kh6 {[%emt 0:00:35]} 34. Nd2 {[%emt 0:00:33]} Qf5 {[%emt 0:00:07]} 35. Nf1 {[%emt 0:00:43]} (35. a5 $11) 35... b6 {[%emt 0:00:30]} (35... Rxe4 $17 36. Rxe4 Rxe4 37. fxe4 Qf6) 36. Qc2 $2 {[%emt 0:00:20]} (36. Nd2 $11) 36... Rxe4 $19 {[%emt 0:00:54]} 37. Rxe4 {[%emt 0:00:39]} Re5 $2 {[%emt 0:00:52]} (37... Rxe4 $19 38. fxe4 Qe5) 38. Qd3 $2 {[%emt 0:00:45]} (38. Nd2 $11) 38... g5 $2 {[%emt 0:00:19]} ({Black should play} 38... Rxe4 $19 39. fxe4 Qf6) 39. Qe2 {[%emt 0:00:38][%mdl 8192]} (39. Nd2 $15) 39... Rxe4 {[%emt 0:00:40]} 40. Qxe4 {[%emt 0:00:00]} (40. fxe4 Qe5 41. Nh2) 40... Qxe4 {[%emt 0:00:00]} 41. fxe4 {[%emt 0:01:16][%mdl 4096] Endgame KB-KN} Kg6 {[%emt 0:00:14]} (41... g4 $142 42. Nh2 Kg5 43. hxg4 hxg4) 42. g4 {[%emt 0:04:45][%cal Oe4e5] [#]} hxg4 $2 {[%emt 0:02:33]} (42... fxg3 $1 $19 43. Nxg3 Kf6 44. Nxh5+ Ke5) 43. hxg4 $11 {[%emt 0:00:23] The position is equal.} Kf6 {[%emt 0:00:19]} 44. Nd2 {[%emt 0:01:22]} Ke5 {[%emt 0:02:20] Strongly threatening ...Kd4.} 45. Nf3+ {[%emt 0:01:04]} Kxe4 {[%emt 0:01:47]} 46. Nxg5+ {[%emt 0:00:14]} Kd3 {[%emt 0:02:16]} 47. Nf3 $1 {[%emt 0:03:04] aiming for g5.} Be3 {[%emt 0:09:42] Whites escaped into a draw.  Weighted Error Value: White=0.68/Black=0.47} 1/2-1/2

[Event "Hungarian Youth-ch U14 2022"]
[Site "Eger"]
[Date "2022.07.27"]
[Round "5.2"]
[White "Kolimar, Kristof Pal"]
[Black "Megyaszai, Balazs"]
[Result "1-0"]
[ECO "A13"]
[WhiteElo "2160"]
[BlackElo "1919"]
[Annotator "TA"]
[PlyCount "113"]
[EventDate "2022.07.21"]
[EventType "tourn"]
[EventCountry "HUN"]
[SourceTitle "playchess.com"]
[Source "ChessBase"]
[SourceQuality "1"]
[TimeControl "40/5400+30:1800+30"]

{[%evp 9,113,0,14,0,0,0,0,11,28,28,34,44,41,40,41,7,35,16,108,37,136,122,129,66,129,76,68,68,80,47,91,56,70,52,57,35,52,31,19,12,55,33,56,35,31,25,24,22,35,12,4,4,29,18,21,16,16,16,25,3,50,49,56,58,31,23,22,8,33,24,65,61,126,35,43,29,29,4,8,8,25,32,64,12,11,8,35,37,59,48,59,47,87,49,1002,843,762,632,1149,1072,1048,1001,777,533,29980,29964]} 1. Nf3 {[%emt 0:00:33]} d5 {[%emt 0:00:42]} 2. c4 {[%emt 0:00:05]} e6 {[%emt 0:00:32]} 3. g3 {[%emt 0:00:04]} c6 {[%emt 0:00:46]} 4. Bg2 {[%emt 0:00:32]} dxc4 {[%emt 0:03:57]} 5. a4 {[%emt 0:00:40]} Nf6 {[%emt 0:05:57]} 6. O-O {[%emt 0:01:53] A13: English Opening: 1...e6.} Na6 {[%emt 0:10:02]} 7. Qc2 {[%emt 0:14:40]} Nb4 {[%emt 0:08:26]} 8. Qxc4 {[%emt 0:00:44] The position is equal.} Qd5 {[%emt 0:00:36]} 9. Na3 {[%emt 0:04:09]} Qxc4 {[%emt 0:12:47]} 10. Nxc4 {[%emt 0:00:02]} Be7 {[%emt 0:00:44]} 11. d3 {[%emt 0:12:02]} O-O {[%emt 0:06:50]} 12. a5 {[%emt 0:01:13] [#]} Nd7 $146 {[%emt 0:11:47]} ({Predecessor:} 12... Bd7 13. Nfe5 Rfc8 14. Nxd7 Nxd7 15. Bd2 Nc2 16. Ra2 Nd4 17. Re1 Nc5 18. Kf1 Na6 {1-0 (82) Sadhwani,R (2579)-Travadon,L (2410) Spilimbergo 2021}) 13. Bd2 {[%emt 0:03:56]} f6 {[%emt 0:08:46]} (13... Nb8 $1 $11) 14. Nd4 {[%emt 0:20:21]} (14. Bxb4 $16 Bxb4 15. a6) 14... Kf7 {[%emt 0:05:04]} ({Better is} 14... Nb8 $1 $14) 15. Rfc1 {[%emt 0:01:16]} Na6 {[%emt 0:03:07] [#]} 16. Rab1 {[%emt 0:04:34] White is much more active. The black rooks are badly placed.} (16. b4 $1 $16 {[%cal Rb4b5]}) 16... Bb4 {[%emt 0:02:30]} (16... Rd8 $14) 17. Nc2 {[%emt 0:02:05]} (17. Bh3 $142) 17... Bxd2 $16 {[%emt 0:03:20]} 18. Nxd2 {[%emt 0:00:13][%cal Bc4d2,Bd2b3,Bb3d4][%mdl 32]} Nc7 {[%emt 0:00:41]} 19. Na3 {[%emt 0:05:55]} a6 {[%emt 0:01:42]} 20. d4 {[%emt 0:01:05]} e5 {[%emt 0:01:54]} 21. Nb3 {[%emt 0:01:59]} exd4 {[%emt 0:02:32]} 22. Nxd4 {[%emt 0:00:01]} Nb5 {[%emt 0:00:20]} 23. Naxb5 {[%emt 0:07:46]} axb5 {[%emt 0:00:17]} 24. b4 {[%emt 0:00:14][%cal Od4c6]} Ne5 {[%emt 0:02:02][%cal Bd7e5,Be5c4,Bc4d2,Bd2f1][%mdl 32]} 25. e3 {[%emt 0:00:41]} Nc4 {[%emt 0:01:55]} 26. Bf1 {[%emt 0:02:59]} Nd2 {[%emt 0:00:33]} 27. Rb2 {[%emt 0:00:01]} Nxf1 {[%emt 0:00:18]} 28. Kxf1 {[%emt 0:00:01]} Be6 {[%emt 0:00:27]} 29. f3 {[%emt 0:03:10]} Bc4+ {[%emt 0:01:16]} 30. Kf2 {[%emt 0:00:01]} g6 {[%emt 0:00:45]} 31. g4 {[%emt 0:06:11]} Rfc8 {[%emt 0:00:56]} 32. Nb3 {[%emt 0:00:57]} Bxb3 {[%emt 0:00:53]} 33. Rxb3 $11 {[%emt 0:00:01][%mdl 4096] Endgame KRR-KRR} Rd8 {[%emt 0:01:50]} 34. Ke2 {[%emt 0:00:55]} Rd6 {[%emt 0:00:47]} (34... b6 $11) 35. Rd3 $14 {[%emt 0:00:39]} Rad8 {[%emt 0:00:52]} 36. Rcd1 {[%emt 0:01:42]} Ke6 {[%emt 0:00:55]} 37. Rxd6+ {[%emt 0:03:32]} Rxd6 {[%emt 0:00:01] KR-KR} 38. Ra1 {[%emt 0:00:37]} Rd7 {[%emt 0:01:14]} 39. h4 {[%emt 0:01:04]} Rc7 {[%emt 0:00:46]} 40. Rc1 {[%emt 0:00:00]} Kd6 {[%emt 0:00:00]} (40... f5 $14) 41. Rc5 {[%emt 0:01:38]} (41. Rd1+ $16 Ke6 42. e4) 41... b6 {[%emt 0:06:54]} 42. axb6 {[%emt 0:00:10]} Rb7 {[%emt 0:00:08]} 43. Rc2 {[%emt 0:10:36]} Rxb6 {[%emt 0:01:13]} 44. Rd2+ {[%emt 0:00:13]} Ke7 {[%emt 0:01:17]} 45. Ra2 {[%emt 0:00:18]} Rb7 {[%emt 0:10:20] Inhibits Ra7.} 46. Ra6 {[%emt 0:01:42]} (46. e4 $14) 46... Kd6 $11 {[%emt 0:01:28]} 47. Kd3 {[%emt 0:04:32]} Rf7 {[%emt 0:04:12]} 48. Kd4 {[%emt 0:00:58]} f5 {[%emt 0:06:01]} 49. g5 $1 {[%emt 0:01:52]} Rd7 {[%emt 0:00:35]} 50. e4 {[%emt 0:02:39]} fxe4 {[%emt 0:01:57]} 51. fxe4 {[%emt 0:00:12]} Ke6+ $2 {[%emt 0:00:34][%mdl 8192] [#] A mistake that costs the game.} (51... Rd8 $14) 52. Kc5 $18 {[%emt 0:00:19]} Ke5 {[%emt 0:00:29]} 53. Rxc6 {[%emt 0:04:02]} Rd1 {[%emt 0:02:00]} 54. Rc7 {[%emt 0:05:33]} Rc1+ {[%emt 0:00:08]} 55. Kb6 {[%emt 0:00:02]} Rc4 {[%emt 0:00:11]} 56. Rc5+ {[%emt 0:00:01]} Rxc5 {[%emt 0:00:21]} 57. Kxc5 {[%emt 0:00:01] Weighted Error Value: White=0.24 (precise) /Black=0.34} 1-0

[Event "Hungarian Youth-ch U14 2022"]
[Site "Eger"]
[Date "2022.07.27"]
[Round "5.3"]
[White "Szakmary, Domonkos"]
[Black "Bodrogi, Bendeguz"]
[Result "0-1"]
[ECO "B32"]
[WhiteElo "1967"]
[BlackElo "2170"]
[Annotator "TA"]
[PlyCount "70"]
[EventDate "2022.07.21"]
[EventType "tourn"]
[EventCountry "HUN"]
[SourceTitle "playchess.com"]
[Source "ChessBase"]
[SourceQuality "1"]
[TimeControl "40/5400+30:1800+30"]

{[%evp 17,70,47,50,46,46,46,46,46,50,51,54,45,52,53,68,37,41,31,51,48,52,28,38,41,43,23,29,-8,26,-16,-13,-161,-157,-155,-142,-133,-140,-106,-91,-95,-91,-93,-84,-93,-74,-242,-239,-197,-194,-2151,-1975,-29990,-29991,-29991,-29992]} 1. e4 {[%emt 0:00:33]} c5 {[%emt 0:00:41]} 2. Nf3 {[%emt 0:00:07]} Nc6 {[%emt 0:00:07]} 3. d4 {[%emt 0:00:07]} cxd4 {[%emt 0:00:03]} 4. Nxd4 {[%emt 0:00:03]} e5 {[%emt 0:00:06]} 5. Nb5 {[%emt 0:00:05]} a6 {[%emt 0:00:08]} 6. Nd6+ {[%emt 0:00:02]} Bxd6 {[%emt 0:00:07]} 7. Qxd6 {[%emt 0:00:01]} Qe7 {[%emt 0:00:13]} 8. Qd1 {[%emt 0:00:02]} Nf6 {[%emt 0:00:10]} 9. Nc3 {[%emt 0:00:03]} d6 {[%emt 0:00:07]} 10. Bg5 {[%emt 0:00:05] B32: Sicilian: Löwenthal and Kalashnikov Variations.} Be6 {[%emt 0:00:06]} 11. Nd5 {[%emt 0:00:06]} Bxd5 {[%emt 0:00:05]} 12. exd5 {[%emt 0:00:02] White is slightly better.} Nb8 {[%emt 0:00:09]} (12... Nb4 $2 13. Bxf6 Qxf6 14. a3 $18) 13. c4 {[%emt 0:00:38]} Nbd7 {[%emt 0:00:21]} 14. Be2 {[%emt 0:00:07]} h6 {[%emt 0:00:21]} 15. Be3 {[%emt 0:00:02]} a5 {[%emt 0:00:19] [#]} 16. a4 $146 {[%emt 0:00:01]} ({Predecessor:} 16. O-O O-O 17. b3 Ne4 18. Qc2 f5 19. Bd3 Ndc5 20. Bxc5 Nxc5 21. Bxf5 e4 22. Be6+ {0-1 (48) Halasz,C (2089)-Beglyj,M (1979) Hungary 2017}) 16... O-O {[%emt 0:04:56]} 17. O-O {[%emt 0:00:05]} Nh7 {[%emt 0:07:46]} 18. Ra3 {[%emt 0:02:15]} Nc5 {[%emt 0:13:55]} 19. Bc1 {[%emt 0:01:21]} f5 {[%emt 0:10:18][%cal Bf7f5,Bf5e4,Be4e3][%mdl 32]} 20. f4 {[%emt 0:01:38]} Nf6 {[%emt 0:09:03]} 21. Re3 {[%emt 0:03:09] White wants to play fxe5.} Nfe4 {[%emt 0:01:52]} 22. Bd3 {[%emt 0:14:22]} Rae8 {[%emt 0:16:59]} 23. Bxe4 {[%emt 0:04:22]} exf4 {[%emt 0:00:47]} 24. Ree1 {[%emt 0:02:52]} fxe4 $19 {[%emt 0:00:14]} ({Much worse is} 24... Nxe4 $6 25. Bxf4 Qc7 26. b3 $11) 25. Rxf4 {[%emt 0:07:00]} Rxf4 {[%emt 0:03:06]} 26. Bxf4 {[%emt 0:00:04]} Nd3 {[%emt 0:00:10]} 27. Rf1 {[%emt 0:00:39]} Nxf4 {[%emt 0:01:38] Black is more active.} 28. Rxf4 $17 {[%emt 0:00:02][%mdl 4096] Endgame KQR-KQR} e3 $36 {[%emt 0:01:38][%mdl 2048] Black is really pushing.} 29. Qe2 {[%emt 0:02:18]} Qe5 {[%emt 0:00:07]} 30. g3 {[%emt 0:04:03]} Re7 {[%emt 0:05:35]} 31. Kg2 $2 {[%emt 0:06:45] [#]} (31. Rf1 $17) 31... g5 $19 {[%emt 0:04:04][%cal Bg7g5,Bg5g4][%mdl 32]} 32. Rf1 {[%emt 0:00:40]} Qe4+ {[%emt 0:00:17]} 33. Kh3 $2 {[%emt 0:03:42]} (33. Qf3) 33... h5 {[%emt 0:05:21]} 34. b3 {[%emt 0:05:09]} g4+ {[%emt 0:01:23]} 35. Kh4 {[%emt 0:00:01]} Rg7 {[%emt 0:02:01] Weighted Error Value: White=0.86/Black=0.04 (flawless)} 0-1

[Event "Hungarian Youth-ch U14 2022"]
[Site "Eger"]
[Date "2022.07.27"]
[Round "5.4"]
[White "Turcsanyi, Vince Gergo"]
[Black "Giang, Tran Nam"]
[Result "1/2-1/2"]
[ECO "C17"]
[WhiteElo "2117"]
[BlackElo "2144"]
[Annotator "TA"]
[PlyCount "50"]
[EventDate "2022.07.21"]
[EventType "tourn"]
[EventCountry "HUN"]
[SourceTitle "playchess.com"]
[Source "ChessBase"]
[SourceQuality "1"]
[TimeControl "40/5400+30:1800+30"]

{[%evp 16,50,-7,-16,79,69,85,45,68,81,54,62,110,124,127,126,166,181,177,177,170,166,172,171,175,170,172,160,160,138,168,153,163,89,113,81,103]} 1. e4 {[%emt 0:00:32] Mikhalchishin,Adrian} e6 {[%emt 0:00:35]} 2. d4 {[%emt 0:01:34]} d5 {[%emt 0:00:05]} 3. Nc3 {[%emt 0:01:39]} Bb4 {[%emt 0:00:06]} 4. e5 {[%emt 0:00:21]} c5 {[%emt 0:00:08]} 5. Bd2 {[%emt 0:00:14]} Ne7 {[%emt 0:02:05]} 6. f4 {[%emt 0:06:17]} Nbc6 {[%emt 0:02:27]} 7. Nb5 {[%emt 0:05:18]} Bxd2+ {[%emt 0:01:48]} 8. Qxd2 {[%emt 0:00:15]} O-O {[%emt 0:00:38]} 9. dxc5 {[%emt 0:08:08]} f6 {[%emt 0:04:49] C17: French: 3 Nc3 Bb4 4 e5 c5 sidelines.} (9... b6 $11 {keeps the balance.}) 10. exf6 $16 {[%emt 0:02:37] White is more active.} Rxf6 {[%emt 0:00:32]} 11. O-O-O {[%emt 0:05:21]} b6 {[%emt 0:12:06] White is slightly better.} 12. cxb6 {[%emt 0:08:26]} Qxb6 {[%emt 0:01:11]} 13. Nf3 {[%emt 0:01:39] [#] Against e5} Ba6 $146 {[%emt 0:04:01]} (13... Bd7 $14) ({Predecessor:} 13... Rb8 14. b3 Qc5 15. Nbd4 a5 16. Kb1 a4 17. g3 Nxd4 18. Nxd4 Nc6 19. Nxc6 Qxc6 {½-½ (72) Zawadzka,J (2400)-Lagno,K (2530) Tbilisi 2011 CBM 142 Extra [Mikhalchishin,Adrian]}) 14. Nbd4 {[%emt 0:04:52]} Rb8 {[%emt 0:02:24][%csl Gb8][%cal Rb6b2] [#]} 15. b3 {[%emt 0:05:27]} Na5 {[%emt 0:10:26]} 16. Ne5 {[%emt 0:07:47] Against Nc4. Threatens to win with Nd7.} Bc8 {[%emt 0:09:35] Prevents Nd7.} 17. Kb1 {[%emt 0:05:34]} Nac6 {[%emt 0:04:56]} 18. Nexc6 {[%emt 0:05:22]} Nxc6 {[%emt 0:00:09]} 19. Nxc6 {[%emt 0:00:05]} Qxc6 {[%emt 0:00:08]} 20. Bd3 {[%emt 0:00:53]} Qc7 {[%emt 0:03:09]} 21. Rhf1 {[%emt 0:02:07]} a5 {[%emt 0:01:45]} 22. h4 {[%emt 0:05:27]} Bd7 {[%emt 0:02:31]} 23. Qe3 {[%emt 0:02:25]} a4 {[%emt 0:04:15]} 24. g4 {[%emt 0:03:08]} (24. Qe5 $18 Qxe5 25. fxe5) 24... axb3 {[%emt 0:04:01]} 25. cxb3 {[%emt 0:00:12]} ({Of course not} 25. axb3 $6 Rb4 $11) 25... Rb4 {Weighted Error Value: White=0.08 (flawless) /Black=0.29 (precise)} 1/2-1/2

[Event "Hungarian Youth-ch U14 2022"]
[Site "Eger"]
[Date "2022.07.27"]
[Round "5.5"]
[White "Matyassy, Lazar"]
[Black "Csernyik, Mark"]
[Result "1/2-1/2"]
[ECO "C00"]
[WhiteElo "2132"]
[BlackElo "2022"]
[Annotator "TA"]
[PlyCount "37"]
[EventDate "2022.07.21"]
[EventType "tourn"]
[EventCountry "HUN"]
[SourceTitle "playchess.com"]
[Source "ChessBase"]
[SourceQuality "1"]
[TimeControl "40/5400+30:1800+30"]

{[%evp 11,37,12,9,5,50,10,29,29,33,0,28,15,6,2,20,-70,-76,-290,-291,-294,-14,-11,8,-24,-10,-22,0,-31]} 1. e4 {[%emt 0:00:34]} e6 {[%emt 0:01:02]} 2. d4 {[%emt 0:00:09]} d5 {[%emt 0:00:05]} 3. Bd3 {[%emt 0:00:04]} Nc6 {[%emt 0:01:48]} 4. exd5 {[%emt 0:06:04]} exd5 {[%emt 0:00:49]} 5. c3 {[%emt 0:00:15]} Bd6 {[%emt 0:03:05]} 6. Ne2 {[%emt 0:05:48]} Nf6 {[%emt 0:02:22]} 7. O-O {[%emt 0:01:48] C01: French: Exchange Variation.} Bg4 {[%emt 0:03:58]} 8. a4 {[%emt 0:04:09]} (8. h3 $5 {[%cal Rh3g4]} Bh5 9. Qb3 $11) 8... Qd7 {[%emt 0:02:36] [#]} 9. a5 $146 {[%emt 0:02:25] White has an edge.} ({Predecessor:} 9. f3 Bf5 10. Bf4 O-O-O 11. Bxd6 Bxd3 12. Qxd3 Qxd6 13. b4 Rhe8 14. Na3 Re7 15. Nc2 Rde8 16. Rfe1 g6 17. Ng3 {½-½ (17) Ramp,O (1733)-Otto,M (1782) Mecklenburg VP 2008}) 9... a6 {[%emt 0:01:26]} 10. b4 {[%emt 0:00:34]} Na7 {[%emt 0:06:09]} 11. f3 {[%emt 0:08:40]} Bf5 {[%emt 0:02:06]} 12. Ng3 {[%emt 0:22:42]} Bxd3 {[%emt 0:03:33]} 13. Re1+ {[%emt 0:00:13]} (13. Qxd3 $11 O-O 14. Nf5) 13... Be4 $1 $15 {[%emt 0:01:27]} 14. Bg5 $2 {[%emt 0:13:43]} (14. fxe4 $17 Bxg3 15. hxg3 Nxe4 16. Nd2) 14... Bxg3 $19 {[%emt 0:06:23]} 15. hxg3 {[%emt 0:01:12] [#]} O-O-O $2 {[%emt 0:00:38]} 16. fxe4 $11 {[%emt 0:01:22]} dxe4 {[%emt 0:05:56] Hoping for ...Rde8.} 17. Bxf6 {[%emt 0:02:02]} (17. Nd2 $5 {[%cal Rg5f6]}) 17... gxf6 {[%emt 0:01:12]} 18. Rxe4 {[%emt 0:00:27]} Nb5 {[%emt 0:01:00]} 19. Qf3 {[%emt 0:03:21] Weighted Error Value: White=0.39/Black=0.41} 1/2-1/2